Cogmind - Beta 9.4 @@@ ROGUE MODE // 2020.03.03 @ 23:26:10 Player: timonkot131 Result: Destroyed by P-70 Sage with Tesla Rifle Performance ------------- Evolutions (5) 2500 Regions Visited (9) 1800 Robots Destroyed (94) 470 Value Destroyed (3307) 3307 Prototype IDs (7) 140 Alien Tech Used (0) 0 Bonus (-100) -100 TOTAL SCORE: 8117 Bonus ------- High Alert Combat Kills 36 Follower Combat Kills 750 Friendly Fire -886 Cogmind --------- Core Integrity 0/1000 Matter 148/300 Energy 240/240 System Corruption 32% Temperature Cool (298) Movement Core (1950) Ox38 Location -5/Factory Parts ------- > --- POWER (2) -------- Micro Fission Core Micro Fission Core > --- PROPULSION (4) --- Gyrokinetic Inverter > --- UTILITY (7) ------ Advanced Heat Sink High-capacity Storage Unit High-capacity Storage Unit High-capacity Storage Unit Advanced Signal Interpreter Improved Target Analyzer Improved Core Analyzer > --- WEAPON (4) ------- Heavy Laser Compact Ion Cannon > --- INVENTORY (28) --- Light Fission Core Light Fission Core Micro Fission Core Mini Fusion Reactor Carbon-fiber Leg Large Storage Unit Large Storage Unit Advanced Signal Interpreter Improved Component Analysis Suite Advanced Reclamation Unit Autogun Autogun Improved Remote Datajack Improved Remote Datajack Katana Scythe Peak State ------------ > --- POWER ------------ Improved Deuterium Engine Mini Fusion Reactor > --- PROPULSION ------- Light Treads Light Treads Light Treads Light Treads > --- UTILITY ---------- Experimental Heat Sink High-capacity Storage Unit High-capacity Storage Unit High-capacity Storage Unit Advanced Signal Interpreter Improved Medium Armor Plating Remote Force Field > --- WEAPON ----------- Enhanced Quantum Rifle Enhanced Quantum Rifle Compact Ion Cannon Compact Ion Cannon > --- INVENTORY -------- Improved Ion Engine Light Nuclear Core Light Angular Momentum Engine Light Treads Light Treads Light Treads Light Treads Light Treads Light Treads Light Treads Light Treads Light Treads Armored Wheel Improved Heat Sink Large Storage Unit Large Storage Unit Advanced Signal Interpreter Improved Core Analyzer 01-MTF's Shockpuncher Compact Ion Cannon Compact Ion Cannon Compact Ion Cannon Gauss Rifle Shock Bomb Launcher Grenade Launcher Missile Launcher Scythe [Rating: 76] Favorites ----------- Power Mini Fusion Reactor Engine Ion Engine Power Core Micro Fission Core Reactor Mini Fusion Reactor Propulsion Light Treads Treads Light Treads Leg Flexi-carbon Leg Wheel Compact Wheel Hover Unit Antigrav System Flight Unit VTOL Module Utility High-capacity Storage Unit Device Experimental Heat Sink Storage High-capacity Storage Unit Processor Advanced Signal Interpreter Protection Improved Medium Armor Plating Weapon Compact Ion Cannon Energy Gun 01-MTF's Shockpuncher Energy Cannon Compact Ion Cannon Ballistic Gun Heavy Assault Rifle Launcher Missile Launcher Slashing Weapon Katana Build | -11 -10 -9 -9 -8 -7 -7 -7 -6 -5 ------- Run | Scr Mat Mat Sto Mat Fac Was Fac Fac Fac Slots Evolved 10 | . . 2 . 2 2 . . 2 2 Power 1 | . . . . . . . . 1 . Propulsion 2 | . . . . 1 . . . . 1 Utility 5 | . . 2 . 1 1 . . . 1 Weapon 2 | . . . . . 1 . . 1 . Parts Attached 173 | 6 12 5 30 18 7 1 5 10 79 Power 15 | 1 1 . 4 . . . . 3 6 Engine 8 | 1 1 . 2 . . . . 3 1 Core 5 | . . . . . . . . . 5 Reactor 2 | . . . 2 . . . . . . Propulsion 45 | 2 2 . 3 3 2 . 1 4 28 Treads 29 | . 2 . 3 3 2 . 1 4 14 Leg 2 | . . . . . . . . . 2 Wheel 5 | 2 . . . . . . . . 3 Hover 6 | . . . . . . . . . 6 Flight 3 | . . . . . . . . . 3 Utility 39 | 1 2 4 11 3 2 1 1 2 12 Device 18 | . . . 6 3 . 1 . 1 7 Storage 9 | 1 2 2 4 . . . . . . Processor 6 | . . 1 . . 1 . 1 . 3 Hackware . | . . . . . . . . . . Protection 6 | . . 1 1 . 1 . . 1 2 Artifact . | . . . . . . . . . . Weapon 74 | 2 7 1 12 12 3 . 3 1 33 Energy Gun 29 | 1 7 1 3 3 1 . . . 13 Energy Cannon 19 | . . . 6 5 1 . 1 1 5 Ballistic Gun 11 | 1 . . 3 . . . . . 7 Ballistic Cannon . | . . . . . . . . . . Launcher 11 | . . . . 4 1 . 2 . 4 Special Weapon . | . . . . . . . . . . Impact Weapon . | . . . . . . . . . . Slashing Weapon 4 | . . . . . . . . . 4 Piercing Weapon . | . . . . . . . . . . Special Melee Weapon . | . . . . . . . . . . Unidentified Prototypes 7 | . . . 7 . . . . . . Parts Lost 66 | . 2 . 3 . . . . 1 60 Power 6 | . . . 1 . . . . . 5 Propulsion 28 | . 1 . 1 . . . . . 26 Utility 10 | . . . 1 . . . . 1 8 Weapon 22 | . 1 . . . . . . . 21 Highest Loss Streak 16 | . 2 . 1 . . . . 1 16 Average Slot Usage (%) 94 | . 96 99 99 99 100 100 100 85 81 Engine 2 | . 12 11 3 . . . . 6 1 Core 1 | . . . . . . . . . 5 Reactor 5 | . . . 7 9 7 7 7 6 . Treads 19 | . 19 22 22 27 23 23 23 20 9 Device 10 | . . . 7 18 15 15 15 11 7 Storage 24 | . 27 32 33 27 23 23 23 20 17 Processor 4 | . . 1 1 . 3 7 7 6 8 Protection 1 | . . 9 1 . 3 . . . 2 Energy Gun 8 | . 27 22 9 8 7 7 7 5 5 Energy Cannon 6 | . . . 6 8 13 7 8 7 4 Ballistic Gun 1 | . . . 6 . . . . . 2 Launcher 1 | . . . . 1 . 7 5 . . Naked Turns . | . . . . . . . . . . Heaviest Build 150 | 13 43 62 116 117 119 126 126 130 150 Greatest Support 80 | 32 40 40 40 60 60 60 60 60 80 Greatest Overweight (x) 24 | 2 12 1 4 5 5 2 2 2 24 Average Overweight (x) 2 | . . 1 2 1 1 1 2 1 3 Largest Inventory Capacity 28 | 6 16 22 28 28 28 28 28 28 28 Average Capacity 26 | 4 15 21 25 28 28 28 28 28 28 Most Carried 28 | 6 16 20 28 28 28 28 28 28 27 Average Carried 24 | 2 14 16 24 27 27 27 27 27 21 Final Capacity 28 | 6 16 22 28 28 28 28 28 28 28 Final Carried 28 | 6 16 20 27 28 28 28 28 28 16 Class Distribution -------------------- 76% | Hauler-Mutant 12% | Scavenger-Mutant 5% | Mutant 4% | Hauler-Tank Dominant Class ---------------- Mutant | -10/Materials Hauler-Mutant | -9/Materials Hauler-Mutant | -9/Storage Hauler-Mutant | -8/Materials Hauler-Mutant | -7/Factory Hauler-Mutant | -7/Waste Hauler-Mutant | -7/Factory Hauler-Mutant | -6/Factory Scavenger-Mutant | -5/Factory Resources | -11 -10 -9 -9 -8 -7 -7 -7 -6 -5 ----------- Run | Scr Mat Mat Sto Mat Fac Was Fac Fac Fac Matter Collected 2170 | 205 160 40 517 220 73 . 141 102 712 Remotely . | . . . . . . . . . . Salvage Created 3752 | . 185 156 1340 394 280 . 65 294 1038 Parts 227 | . 5 5 93 25 13 . 7 12 67 Haulers Intercepted 1 | . . . 1 . . . . . . Recyclers Shooed 2 | . . . . . . . . 2 . Parts Field Recycled . | . . . . . . . . . . Retrieved Matter . | . . . . . . . . . . Parts Self-Destructed . | . . . . . . . . . . Prevented . | . . . . . . . . . . Kills | -11 -10 -9 -9 -8 -7 -7 -7 -6 -5 ------- Run | Scr Mat Mat Sto Mat Fac Was Fac Fac Fac Combat Hostiles Destroyed 75 | . 5 3 30 7 3 . 1 5 21 Melee 1 | . . . . . . . . . 1 Guns 43 | . 5 3 22 2 2 . . . 9 Cannons 23 | . . . 6 5 1 . 1 5 5 AOE 7 | . . . 2 . . . . . 5 Classes Destroyed 13 | . 1 1 7 1 1 . 2 . . Worker 8 | . . . 1 2 . . 1 . 4 Builder 2 | . . . . . . . 1 . 1 Hauler 1 | . . . 1 . . . . . . Recycler 1 | . . . 1 . . . . . . Carrier 1 | . . . . . 1 . . . . Operator 1 | . . . 1 . . . . . . Watcher 3 | . . . 2 . . . . . 1 Swarmer 18 | . . . 10 . . . . 1 7 Grunt 28 | . 5 2 11 3 2 . . 2 3 Brawler 2 | . . . 2 . . . . . . Sentry 15 | . . 1 7 3 1 . . 2 1 Hunter 4 | . . . . 1 . . . . 3 Programmer 8 | . . . . . . . 1 . 7 Thug 1 | . . . . . . . 1 . . Best Kill Streak 8 | . 2 2 8 3 2 . 1 3 3 Combat Bots Only 8 | . 2 2 8 2 2 . 1 3 3 Max Kills in Single Turn 3 | . 1 1 3 1 1 . 1 1 3 Gunslinging 1 | . . . . . . . . . 1 Exploded 3 | . . . 1 . . . . . 3 Melee 1 | . . . . . . . . . 1 Uniques/NPCs Destroyed 1 | . . . 1 . . . . . . 01-MTF (-9/Storage) Combat | -11 -10 -9 -9 -8 -7 -7 -7 -6 -5 -------- Run | Scr Mat Mat Sto Mat Fac Was Fac Fac Fac Damage Taken 9779 | . 410 235 845 482 327 . 86 675 6719 Core 1445 | . 56 15 126 59 44 . 8 128 1009 Absorbed by Shields 100 | . . . . . . . 14 26 60 Core Remaining (%) 84 | 100 77 . 64 89 . . 92 84 . Volleys Fired 225 | . 21 10 63 18 9 . 12 16 76 Largest 4 | . 2 2 2 2 3 . 2 2 4 Hottest 368 | . 130 105 150 150 230 . 140 180 368 Shots Fired 416 | . 42 16 121 30 18 . 15 31 143 Gun 258 | . 42 16 97 11 8 . 4 3 77 Cannon 128 | . . . 24 13 9 . 5 28 49 Launcher 30 | . . . . 6 1 . 6 . 17 Special . | . . . . . . . . . . Kinetic 109 | . . . 74 . . . . . 35 Thermal 204 | . 36 6 25 13 9 . 5 28 82 Explosive 18 | . . . . 6 1 . 6 . 5 Electromagnetic 85 | . 6 10 22 11 8 . 4 3 21 Robot Hit Streak 29 | . 11 11 29 8 19 . 29 10 9 Robot Miss Streak 8 | . 8 4 7 5 1 . 1 2 2 Penetration Max 1 | . . . . . . . . . 1 Secondary Targets 3 | . . . 2 . . . . . 1 Max Gunslinging Chain 1 | . . . 1 . . . . . 1 Shots Hit Robots 299 | . 32 15 93 14 14 . 8 23 100 Core Hits 179 | . 23 13 51 15 9 . 5 11 52 Critical Hits 7 | . . . . 1 . . 1 . 5 Critical Kills 4 | . . . . 1 . . . . 3 Critical Parts Destroyed 2 | . . . . . . . 1 . 1 Melee Attacks 28 | . . . . . . . . . 28 Impact . | . . . . . . . . . . Slashing 28 | . . . . . . . . . 28 Piercing . | . . . . . . . . . . Sneak Attacks . | . . . . . . . . . . Combat Hostiles . | . . . . . . . . . . Follow-up Attacks . | . . . . . . . . . . Damage Inflicted 7867 | . 290 197 2252 430 518 . 519 742 2919 Guns 4004 | . 282 190 1597 209 351 . 40 92 1243 Cannons 2540 | . . . 540 178 167 . 160 575 920 Explosions 1090 | . . . 110 43 . . 316 75 546 Melee 209 | . . . . . . . . . 209 Ramming 24 | . 8 7 5 . . . 3 . 1 Kinetic 1457 | . . . 853 . . . . . 604 Thermal 3721 | . 243 66 663 178 167 . 160 650 1594 Explosive 706 | . . . . 43 . . 316 . 347 Electromagnetic 1750 | . 39 124 731 209 351 . 40 92 164 Impact . | . . . . . . . . . . Slashing 209 | . . . . . . . . . 209 Piercing . | . . . . . . . . . . Highest Corruption 31 | . 2 . 1 . 2 2 2 . 31 Average Corruption 7 | . 2 . 1 . 2 2 2 . 20 Corruption Purged . | . . . . . . . . . . Effects 144 | . 4 . 6 . 1 4 12 . 117 Message Errors 29 | . 1 . 4 . . . 7 . 17 Matter Fused 15 | . . . . . . . . . 15 Heat Flow Errors 17 | . 2 . . . 1 . 3 . 11 Energy Discharges 13 | . . . 1 . . 3 . . 9 Parts Rejected 2 | . . . . . . . . . 2 Data Loss (minor) 16 | . 1 . . . . 1 2 . 12 Data Loss (major) 1 | . . . . . . . . . 1 Misfires 4 | . . . . . . . . . 4 Alerts 1 | . . . . . . . . . 1 Misdirections 12 | . . . . . . . . . 12 Targeting Errors 32 | . . . 1 . . . . . 31 Weapon Failures 2 | . . . . . . . . . 2 Overload Shots . | . . . . . . . . . . Overflow Damage 397 | . . . 39 . . . 28 42 288 Projectiles 33 | . . . 23 . . . . 1 9 Explosions 347 | . . . 16 . . . 28 41 262 Melee 17 | . . . . . . . . . 17 Knockbacks . | . . . . . . . . . . Impact . | . . . . . . . . . . Kinetic . | . . . . . . . . . . Secondary . | . . . . . . . . . . Self-Inflicted Damage 833 | . 4 . 14 92 . . 70 52 601 Shots 26 | . . . 1 3 . . 1 1 20 Rammed 4 | . 1 1 1 . . . . . 1 Targets Rammed 5 | . 1 1 1 . . . 1 . 1 Kicked . | . . . . . . . . . . Crushed 1 | . . . . . . . 1 . . Highest Temperature 564 | . 495 228 344 102 171 . 251 318 564 Average Temperature 131 | . 181 97 140 27 64 . 60 124 138 Received Heat Transfer 1453 | . 231 126 225 153 123 . . 187 408 Effects 27 | . 13 . . . . . . . 14 Shutdowns 7 | . 3 . . . . . . . 4 Energy Bleed 1 | . 1 . . . . . . . . Interference 9 | . 2 . . . . . . . 7 Matter Decay 2 | . 1 . . . . . . . 1 Short Circuit 1 | . . . . . . . . . 1 Damage (minor) 3 | . 2 . . . . . . . 1 Damage (major) 4 | . 4 . . . . . . . . Siege Activations . | . . . . . . . . . . Robots Corrupted 1 | . . . . . 1 . . . . Combat Hostiles . | . . . . . . . . . . Parts Fried 5 | . . . 3 . 2 . . . . Impact Corruptions . | . . . . . . . . . . Robots Melted 1 | . . . . . . . . . 1 Combat Hostiles 1 | . . . . . . . . . 1 Parts Melted 5 | . . . 1 . . . . . 4 Heat Transferred 4673 | . 295 80 890 224 222 . 185 827 1950 Parts Sabotaged . | . . . . . . . . . . Parts Stolen . | . . . . . . . . . . Parts Stripped . | . . . . . . . . . . Power Chain Reactions 5 | . . . 3 . . . . 1 1 Missiles Intercepted . | . . . . . . . . . . Alert | -11 -10 -9 -9 -8 -7 -7 -7 -6 -5 ------- Run | Scr Mat Mat Sto Mat Fac Was Fac Fac Fac Peak Influence 525 | . 120 144 439 194 158 . 423 249 525 Average Influence 186 | . 55 72 261 63 31 . 291 196 255 Maximum Alert Level 2 | . . . 2 . . . 2 1 2 Low Security (%) 49 | 100 100 100 29 100 100 100 19 18 21 Level 1 45 | . . . 60 . . . 78 81 71 Level 2 4 | . . . 10 . . . 1 . 6 Level 3 . | . . . . . . . . . . Level 4 . | . . . . . . . . . . Level 5 . | . . . . . . . . . . High Security . | . . . . . . . . . . Max Security . | . . . . . . . . . . Squads Dispatched 17 | . . . 2 1 2 . 3 1 8 Investigation . | . . . . . . . . . . Extermination 8 | . . . . . 1 . 3 . 4 Reinforcement 6 | . . . 2 1 1 . . 1 1 Assault . | . . . . . . . . . . Garrison 3 | . . . . . . . . . 3 Intercept . | . . . . . . . . . . Construction Impeded 1 | . . . 1 . . . . . . Haulers Reinforced . | . . . . . . . . . . Stealth | -11 -10 -9 -9 -8 -7 -7 -7 -6 -5 --------- Run | Scr Mat Mat Sto Mat Fac Was Fac Fac Fac Distress Signals 9 | . 2 . 4 2 . . 1 . . Communications Jammed . | . . . . . . . . . . Distress Signals . | . . . . . . . . . . Times Spotted 139 | . 9 5 53 13 8 . 17 7 27 Peak Tracking Total 8 | . 3 3 8 5 4 . 4 2 5 Tactical Retreats 11 | . . . 7 1 1 . . 1 1 Traps | -11 -10 -9 -9 -8 -7 -7 -7 -6 -5 ------- Run | Scr Mat Mat Sto Mat Fac Was Fac Fac Fac Traps Triggered 7 | . 1 . 3 1 2 . . . . Indirectly . | . . . . . . . . . . Trap Hack Attempts . | . . . . . . . . . . Triggered . | . . . . . . . . . . Disarmed . | . . . . . . . . . . Reprogrammed . | . . . . . . . . . . Reused . | . . . . . . . . . . Traps Extracted . | . . . . . . . . . . Installed . | . . . . . . . . . . Triggered 1 | . . . 1 . . . . . . Machines | -11 -10 -9 -9 -8 -7 -7 -7 -6 -5 ---------- Run | Scr Mat Mat Sto Mat Fac Was Fac Fac Fac Machines Disabled 14 | . . . 1 2 . . 4 . 7 Max in Single Turn 4 | . . . 1 1 . . 2 . 4 Garrison Access 1 | . . . 1 . . . . . . Machines Sabotaged . | . . . . . . . . . . Garrisons Compromised . | . . . . . . . . . . Overloaded Fab Kills . | . . . . . . . . . . Fab Network Shutdowns 1 | . . . . . . . . . 1 Hacking | -11 -10 -9 -9 -8 -7 -7 -7 -6 -5 --------- Run | Scr Mat Mat Sto Mat Fac Was Fac Fac Fac Machines Accessed 21 | . 1 1 9 3 1 . 2 . 4 Terminals 12 | . 1 1 7 1 . . 2 . . Fabricators 2 | . . . . . . . . . 2 Repair Stations 3 | . . . 1 1 . . . . 1 Recycling Units 1 | . . . . . . . . . 1 Scanalyzers 1 | . . . . 1 . . . . . Garrison Access 2 | . . . 1 . 1 . . . . Total Hacks 37 | . 1 1 16 6 1 . 3 . 9 Successful 22 | . . 1 12 3 . . . . 6 Failed 15 | . 1 . 4 3 1 . 3 . 3 Catastrophic 2 | . 1 . . . . . . . 1 Database Lockouts . | . . . . . . . . . . Manual 2 | . . . 1 1 . . . . . Terminals 19 | . 1 1 12 2 . . 3 . . Fabricators 5 | . . . . . . . . . 5 Repair Stations 6 | . . . 2 2 . . . . 2 Recycling Units 2 | . . . . . . . . . 2 Scanalyzers 2 | . . . . 2 . . . . . Garrison Access 3 | . . . 2 . 1 . . . . Terminal Hacks 11 | . . 1 9 1 . . . . . Open Door 3 | . . . 3 . . . . . . Alert Level 4 | . . . 3 1 . . . . . Unreport Threat 2 | . . . 2 . . . . . . Locate Traps 2 | . . 1 1 . . . . . . Fabricator Hacks 2 | . . . . . . . . . 2 Network Status 1 | . . . . . . . . . 1 Build 1 | . . . . . . . . . 1 Repair Station Hacks 5 | . . . 2 1 . . . . 2 Scan Component 3 | . . . 1 1 . . . . 1 Repair 2 | . . . 1 . . . . . 1 Recycling Unit Hacks 2 | . . . . . . . . . 2 Recycle Component 1 | . . . . . . . . . 1 Retrieve Matter 1 | . . . . . . . . . 1 Scanalyzer 1 | . . . . 1 . . . . . Insert Component 1 | . . . . 1 . . . . . Garrison Access Hacks 1 | . . . 1 . . . . . . Seal Access 1 | . . . 1 . . . . . . Unauthorized Hacks . | . . . . . . . . . . Terminals . | . . . . . . . . . . Fabricators . | . . . . . . . . . . Repair Stations . | . . . . . . . . . . Recycling Units . | . . . . . . . . . . Scanalyzers . | . . . . . . . . . . Garrison Access . | . . . . . . . . . . Data Cores Recovered . | . . . . . . . . . . Used . | . . . . . . . . . . Hacking Detections 14 | . 1 . 5 2 1 . 2 . 3 Full Trace Events . | . . . . . . . . . . Feedback Events . | . . . . . . . . . . Feedback Blocked . | . . . . . . . . . . Robot Schematics Acquired . | . . . . . . . . . . Robots Built . | . . . . . . . . . . Matter . | . . . . . . . . . . Time . | . . . . . . . . . . Total Robot Build Rating . | . . . . . . . . . . Part Schematics Acquired . | . . . . . . . . . . Parts Built 2 | . . . . . . . . . 2 Matter 278 | . . . . . . . . . 278 Time 69 | . . . . . . . . . 69 Total Part Build Rating 18 | . . . . . . . . . 18 Parts Repaired 1 | . . . 1 . . . . . . Time 52 | . . . 26 . . . . . 26 Parts Recycled 1 | . . . . . . . . . 1 Recycled Matter . | . . . . . . . . . . Retrieved Matter . | . . . . . . . . . . Retrieved Components . | . . . . . . . . . . Parts Scanalyzed 1 | . . . . 1 . . . . . Part Schematics Acquired . | . . . . . . . . . . Parts Damaged . | . . . . . . . . . . Bothacking | -11 -10 -9 -9 -8 -7 -7 -7 -6 -5 ------------ Run | Scr Mat Mat Sto Mat Fac Was Fac Fac Fac Used RIF Installer . | . . . . . . . . . . Robots Hacked . | . . . . . . . . . . Non-combat . | . . . . . . . . . . Combat . | . . . . . . . . . . Robot Hacks Applied . | . . . . . . . . . . Relay Couplers Released . | . . . . . . . . . . Robots Rewired . | . . . . . . . . . . Allies Hacked . | . . . . . . . . . . Hacks Repelled . | . . . . . . . . . . Allies | -11 -10 -9 -9 -8 -7 -7 -7 -6 -5 -------- Run | Scr Mat Mat Sto Mat Fac Was Fac Fac Fac Total Allies 21 | . . . 1 . . 20 . . . Largest Group 20 | . . . 1 . . 20 15 5 . Highest-Rated Group 592 | . . . 99 . . 592 448 145 . Highest-Rated Ally 99 | . . . 99 . . 35 35 31 . Total Orders 2 | . . . 1 1 . . . . . EXPLORE 2 | . . . 1 1 . . . . . Ally Attacks 173 | . . . 5 . . . 148 20 . Total Damage 3143 | . . . 87 . . . 2724 332 . Kills 28 | . . . 4 . . . 22 2 . Allies Corrupted . | . . . . . . . . . . Allies Melted . | . . . . . . . . . . Intel | -11 -10 -9 -9 -8 -7 -7 -7 -6 -5 ------- Run | Scr Mat Mat Sto Mat Fac Was Fac Fac Fac Robot Analysis Total . | . . . . . . . . . . Derelict Logs Recovered . | . . . . . . . . . . Drone Launches 6 | . . . 4 2 . . . . . Drone Recoveries . | . . . . . . . . . . Exploration | -11 -10 -9 -9 -8 -7 -7 -7 -6 -5 ------------- Run | Scr Mat Mat Sto Mat Fac Was Fac Fac Fac Turns Passed 8862 | 62 476 340 1973 930 849 411 1384 490 1947 Spaces Moved 3534 | 44 223 158 733 396 326 206 652 181 615 Core 16 | 15 1 . . . . . . . . Treads 3119 | . 156 158 733 396 326 206 652 181 311 Legs 236 | . . . . . . . . . 236 Wheels 123 | 29 66 . . . . . . . 28 Hover 37 | . . . . . . . . . 37 Flight 3 | . . . . . . . . . 3 Fastest Speed 50 | 50 100 180 180 180 180 180 200 180 170 Average Speed 198 | 105 158 180 202 194 187 198 200 198 228 Slowest Speed 1970 | 150 650 180 240 260 260 200 200 200 1970 Overloaded Moves . | . . . . . . . . . . Propulsion Burnouts . | . . . . . . . . . . Robots Hopped . | . . . . . . . . . . Cave-ins Triggered . | . . . . . . . . . . Exploration Rate (%) 31 | 5 42 15 90 33 9 86 18 4 11 Regions Visited 9 Branch Regions 1 Pre-discovered Areas . | . . . . . . . . . . Known Exits Taken 3 | . . 1 . . . . 1 1 . Unknown Exits Taken 4 | 1 1 . 1 1 . . . . . Scrap Searched . | . . . . . . . . . . Spaces Dug 93 | . . . . 39 11 . 10 . 33 Terrain Destroyed 271 | . . . 18 59 12 . 43 15 124 Melee 15 | . . . . . . . . . 15 Projectile 27 | . . . . 1 1 . . 3 22 AOE 229 | . . . 18 58 11 . 43 12 87 Actions | -11 -10 -9 -9 -8 -7 -7 -7 -6 -5 --------- Run | Scr Mat Mat Sto Mat Fac Was Fac Fac Fac Total 4905 | 57 304 196 1097 520 549 209 717 279 977 Wait 747 | . 26 17 197 65 198 1 42 67 134 Move 3526 | 43 222 157 732 395 326 205 651 180 615 Hop . | . . . . . . . . . . Pick Up 123 | 8 15 6 32 12 5 1 2 3 39 Fast Attach 40 | 4 4 . 14 . 1 . 1 . 16 Attach 70 | 2 4 2 4 4 3 . . 3 48 Detach 4 | . 1 . . 1 . . . 1 1 Swap 63 | . 4 3 12 14 3 1 4 7 15 Drop 72 | . 6 . 40 11 4 1 4 2 4 Fire 225 | . 21 10 63 18 9 . 12 16 76 Melee 28 | . . . . . . . . . 28 Ram 1 | . 1 . . . . . . . . Kick . | . . . . . . . . . . Crush 4 | . . 1 1 . . . 1 . 1 Escape Stasis 2 | . . . 2 . . . . . . Rewire . | . . . . . . . . . . Trap . | . . . . . . . . . . Miscellaneous . | . . . . . . . . . . Route ------- -11/Scrapyard -10/Materials (discovered 2 exits: *Mat / [*Min]) -9/Materials -9/Storage -8/Materials -7/Factory -7/Waste -7/Factory (discovered 2 exits: *Fac / *Low) -6/Factory -5/Factory History --------- Turn | Location | Event 46 | -11/Scrapyard | Discovered new exit (range 15) 63 | -11/Scrapyard | Entered Materials 315 | -10/Materials | Build established: Mutant 360 | -10/Materials | Discovered new exit (range 13) 497 | -10/Materials | Discovered new exit (range 5) 539 | -10/Materials | Entered another Materials area 539 | -9/Materials | Evolved 2 slots: Utility x2 788 | -9/Materials | Discovered new exit (range 6) 854 | -9/Materials | Build established: Hauler-Mutant 854 | -9/Materials | Identified exit to Storage 879 | -9/Materials | Entered Storage 1182 | -9/Storage | Destroyed 8 combat bots 1379 | -9/Storage | Met 01-MTF 1463 | -9/Storage | Found 01-MTF's Shockpuncher 2093 | -9/Storage | Destroyed 01-MTF 2558 | -9/Storage | Repaired Hcp. Storage Unit 2713 | -9/Storage | Discovered new exit (range 23) 2852 | -9/Storage | Entered Materials 2852 | -8/Materials | Evolved 2 slots: Propulsion x1, Utility x1 3714 | -8/Materials | Discovered new exit (range 16) 3782 | -8/Materials | Entered Factory 3782 | -7/Factory | Evolved 2 slots: Utility x1, Weapon x1 4631 | -7/Factory | Sucked down chute 4631 | -7/Factory | Entered Waste 4632 | -7/Waste | Joined by Warlord forces that had cleared the area 5014 | -7/Waste | Discovered new exit (range 13) 5040 | -7/Waste | Identified exit to Factory 5042 | -7/Waste | Entered Factory 5042 | -7/Factory | Accompanied by 15 allies 5545 | -7/Factory | Discovered new exit (range 10) 5569 | -7/Factory | Identified exit to Lower Caves 6402 | -7/Factory | Discovered new exit (range 10) 6416 | -7/Factory | Identified exit to Factory 6426 | -7/Factory | Entered another Factory area 6426 | -6/Factory | Accompanied by 5 allies 6426 | -6/Factory | Evolved 2 slots: Power x1, Weapon x1 6896 | -6/Factory | Discovered new exit (range 3) 6914 | -6/Factory | Identified exit to Factory 6916 | -6/Factory | Entered another Factory area 6916 | -5/Factory | Evolved 2 slots: Propulsion x1, Utility x1 7005 | -5/Factory | Fabricated Enh. Quantum Rifle (x2) 7314 | -5/Factory | Local fabrication network quarantined 7334 | -5/Factory | Lost 3 parts (1n1u1w) 7502 | -5/Factory | System corruption reached 10% 7558 | -5/Factory | Garrison activated, responded to threat 7629 | -5/Factory | Lost 16 parts (1p9n1u5w) 7944 | -5/Factory | Lost 11 parts (1p4n2u4w) 8150 | -5/Factory | Core integrity fell below 50% 8303 | -5/Factory | Build established: Scavenger-Mutant 8309 | -5/Factory | Lost 6 parts (1p4n1w) 8743 | -5/Factory | Lost 7 parts (2n3u2w) 8839 | -5/Factory | Core integrity fell below 20% 8854 | -5/Factory | System corruption reached 30% 8863 | -5/Factory | Destroyed by P-70 Sage with Tesla Rifle Last Messages --------------- 08851_ P-70 Sage destroyed. 08851_ Wheel destroyed. 08852_ Acquired 17 matter. 08852_ U-05 Engineer builds a Wall. 08852_ Slug penetrates Wall. 08853_ System corrupted: Heat flow error (+275). 08854_ System corrupted: Com. Ion Cannon failed to cycle. 08854_ Y-64 Sentinel suffers critical hit. 08855_ Power failure, Mic. Fission Core shutdown. 08855_ Slug penetrates Wall. 08855_ U-05 Engineer builds a Wall. 08857_ Overheating: Matter decay (-27). 08858_ Slug penetrates Wall. 08858_ U-05 Engineer builds a Wall. 08859_ Gauss Rifle destroyed. 08861_ System corrupted: Hvy. Laser failed to cycle. 08862_ U-05 Engineer destroyed. 08862_ Slug penetrates U-05 Engineer. 08862_ U-05 Engineer suffers critical hit. 08862_ U-05 Engineer destroyed. Map ----- +----------------------------------------------------+ | #? ] ?????????????????????? | | # #?##### ?????????????????????? | | # #??????? """ ??????????????????????? | | #?????????""????????????????????????? | | #####"######???????????????????????????????????? | | ##???###????????????????? ????????????????????? | | ##???????????????????????? #??????????????????? | | ???????????????????? ???? #??????????????????? | | ???????????????????? ??? #??????????????????? | | ????????????????????? "?? #??????????????????? | | ????????????????????? """ #??????????????????? | | ???????????????????# "" #??????????????????? | | #?###??????????????# "" #??????????????????? | | ######?????????????# #??????????????????? | | =##############??? #??????????????????? | | + ==%!! #??????????????????? | | %##############????? #??????????????????? | | ##?????????????????? k ???????????????????? | | ##????????????#?????? %| ????#???????????????? | | #?????????????# ????###/########### "?????????? | | |"#????????????# # =u! + "?????????? | | #?????????????# # | #???????????? | | +###?????????????# ?#!%!* Y p #???????????? | | #?????????????# #=*=%=* #???????????? | | #?????????????# *#=%!!=! #???????????? | | #?????????????# #%@=%|!! #???????????? | | #?????????????# ###############???????????? | | ####????????????## ## #???????????????? | | ########????????# # #???????????????? | | ?# ##+####### # #???????????????? | | ## # #???????????????? | | T + #???????????????? | | ## # "" "" #???????????????? | | ?# ##+####### # "F "" #???????????????? | | ?### ### ## !# """"" #???????????????? | | ???# #?# " """ #### #?# #???????????????? | | ???# #?# " "Y" #??# #############??????????????? | | ???# #?# " " " #??# + #??????????????? | | ???# ### " #### # #??????????????? | | ???# + " + # """ #??????????????? | | ???##### " ######## """"" #??????????????? | | ???????# " #??????# """"" #??????????????? | | ???????# " #??????# #??????????????? | | ???????# " #??????# #??????????????? | | ???????# #??????#############??????????????? | | ???????#########?????????????????????????????????? | | | | | | | | | +----------------------------------------------------+ Best States ------------- Heat Dissipation 68 Energy Generation 38 Energy Capacity 360 Matter Stores 300 Matter Capacity 300 Sight Range 16 Robot Scan Range 13 Terrain Scan Density 10 Armor Coverage 225 Propulsion Shielding 33 Phase Shifting 5 Evasion (%) 45 Target Analysis 6 Core Analysis 8 Recoil Reduction 6 Item Schematics ----------------- None Robot Schematics ------------------ None Fabricated ------------ Enh. Quantum Rifle | x2 | -5/Factory | Preloaded Alien Tech Used ----------------- None Achievements -------------- Preemptive Strike Challenges ------------ None Game ------ Seed MicroMagneticNanosword Manual? 0 Play Time 01:50:30 Cumulative 64.0 hours Start 2020.03.03 @ 21:26:22 End 2020.03.03 @ 23:26:10 Sessions 1 Manual Loads 0 Difficulty Rogue Special Mode None Game No. 72 Rogue 72 Adventurer 0 Explorer 0 Win Type - Total 0 Types 0/0/0/0/0/0/0 Lore% 31 Gallery% 42 Achievement% 28 Wizard Run 0 Options --------- ASCII 0 Keyboard 0 Movement Mouse Keybinds 0 Fullscreen 1 Font 20/SmallcapsGlow Map View 66x50 Tactical HUD 1 Map Filters NONE Filters NONE Steam 1 RUN: 774f5f41-0316-4697-a35a-1b0589e5d107